fUST/lending_fUST_20240912
["ID","MTS","AMOUNT","RATE_DAILY","PERIOD"]
[337780203,1726111847804,-500.0,0.00021917,2]
[337780204,1726111847813,-500.0,0.00021917,2]
[337780205,1726111847823,-151.0,0.00021917,2]
[337780206,1726111847832,-151.0,0.00021917,2]
[337780207,1726111847840,-500.0,0.00021917,2]
[337780208,1726111847849,-151.0,0.00021917,2]
[337780209,1726111847859,-151.0,0.00021917,2]
[337780210,1726111847868,-151.0,0.00021917,2]
[337780211,1726111847877,-151.0,0.00021917,2]
[337780212,1726111847887,-500.0,0.00021917,2]
[337780213,1726111847897,-500.0,0.00021917,2]
[337780214,1726111847907,-151.0,0.00021917,2]
[337780215,1726111847916,-151.0,0.00021917,2]
[337780216,1726111847926,-500.0,0.00021917,2]
[337780217,1726111847935,-500.0,0.00021917,2]
[337780218,1726111847945,-500.0,0.00021917,2]
[337780219,1726111847955,-1552.15,0.00021917,2]
[337780220,1726111847964,-500.0,0.00021917,2]
[337780221,1726111847974,-500.0,0.00021917,2]
[337780222,1726111847983,-500.0,0.00021917,2]
[337780223,1726111847992,-426.02987266,0.00021917,2]
[337780224,1726111848004,-1160.91,0.00021917,2]
[337780225,1726111848014,-500.0,0.00021917,2]
[337780226,1726111848024,-504.20783263,0.00021917,2]
[337780227,1726111848033,-1057.9,0.00021917,2]
[337780228,1726111848044,-500.0,0.00021917,2]
[337780229,1726111848054,-500.0,0.00021917,2]
[337780230,1726111848063,-151.0,0.00021917,2]
[337780231,1726111848073,-151.0,0.00021917,2]
[337780232,1726111848082,-500.0,0.00021917,2]
[337780233,1726111848091,-930.0,0.00021917,2]
[337780234,1726111848101,-500.0,0.00021917,2]
[337780235,1726111848110,-500.81888714,0.00021917,2]
[337780236,1726111848119,-1077.36,0.00021917,2]
[337780237,1726111848129,-500.0,0.00021917,2]
[337780238,1726111848138,-2547.34,0.00021917,2]
[337780239,1726111848148,-500.0,0.00021917,2]
[337780240,1726111848157,-551.23,0.00021917,2]
[337780241,1726111848167,-1961.12,0.00021917,2]
[337780242,1726111848176,-500.0,0.00021917,2]
[337780243,1726111848186,-500.0,0.00021917,2]
[337780244,1726111848196,-500.0,0.00021917,2]
[337780245,1726111848205,-500.0,0.00021917,2]
[337780246,1726111848215,-892.77,0.00021917,2]
[337780247,1726111848224,-500.0,0.00021917,2]
[337780248,1726111848233,-500.0,0.00021917,2]
[337780249,1726111848243,-1853.89,0.00021917,2]
[337780250,1726111848253,-560.17,0.00021917,2]
[337780251,1726111848263,-500.0,0.00021917,2]
[337780252,1726111848272,-500.0,0.00021917,2]
[337780253,1726111848283,-500.0,0.00021917,2]
[337780254,1726111848446,-505.54166548,0.00021917,2]
[337780255,1726111848482,-500.0,0.00021917,2]
[337780256,1726111848493,-636.86437409,0.00021917,2]
[337780257,1726111848505,-1486.37,0.00021917,2]
[337780258,1726111848514,-1353.58,0.00021917,2]
[337780259,1726111848524,-1320.81,0.00021917,2]
[337780260,1726111848535,-500.0,0.00021917,2]
[337780261,1726111848546,-442.22506216,0.00021917,2]
[337780262,1726111848561,-1527.67,0.00021917,2]
[337780263,1726111848570,-500.0,0.00021917,2]
[337780264,1726111848580,-500.0,0.00021917,2]
[337780265,1726111848590,-500.90141478,0.00021917,2]
[337780266,1726111848601,-500.0,0.00021917,2]
[337780267,1726111848610,-500.0,0.00021917,2]
[337780268,1726111848619,-190.026946,0.00021917,2]
[337780269,1726111848630,-190.026946,0.00021917,2]
[337780270,1726111848641,-190.026946,0.00021917,2]
[337780271,1726111848651,-2800.83,0.00021917,2]
[337780272,1726111848662,-497.07445143,0.00021917,2]
[337780273,1726111848672,-190.026946,0.00021917,2]
[337780274,1726111848683,-500.0,0.00021917,2]
[337780275,1726111848693,-521.74,0.00021917,2]
[337780276,1726111848703,-500.0,0.00021917,2]
[337780277,1726111848713,-500.0,0.00021917,2]
[337780278,1726111848722,-190.026946,0.00021917,2]
[337780279,1726111848731,-190.026946,0.00021917,2]
[337780280,1726111848742,-190.026946,0.00021917,2]
[337780281,1726111848752,-500.0,0.00021917,2]
[337780282,1726111848763,-568.74957547,0.00021917,2]
[337780283,1726111848801,-960.14042453,0.00021917,2]
[337780284,1726111848812,-190.026946,0.00021917,2]
[337780285,1726111848822,-500.0,0.00021917,2]
[337780286,1726111848833,-500.0,0.00021917,2]
[337780287,1726111848844,-500.0,0.00021917,2]
[337780288,1726111848854,-988.02,0.00021917,2]
[337780289,1726111848864,-8859.87,0.00021917,2]
[337780290,1726111848875,-541.41800902,0.00021917,2]
[337780291,1726111848885,-1019.0,0.00021917,2]
[337780292,1726111848895,-500.0,0.00021917,2]
[337780293,1726111848904,-525.30879091,0.00021917,2]
[337780294,1726111848914,-500.0,0.00021917,2]
[337780295,1726111848923,-500.0,0.00021917,2]
[337780296,1726111848933,-1298.29,0.00021917,2]
[337780297,1726111848943,-176.86156,0.00021918,2]
[337780298,1726111848952,-349.71064,0.00021918,2]
[337780299,1726111848962,-151.0,0.00021918,7]
[337780300,1726111848972,-151.0,0.00021918,7]
[337780301,1726111848982,-151.0,0.00021918,7]
[337780302,1726111848991,-151.0,0.00021918,7]
[337780303,1726111849001,-151.0,0.00021918,7]
[337780304,1726111849012,-523.393542,0.00021918,7]
[337780305,1726111849021,-523.393542,0.00021918,7]
[337780306,1726111849032,-151.0,0.00021918,7]
[337780307,1726111849043,-794.517859,0.00021918,7]
[337780308,1726111849052,-794.517859,0.00021918,7]
[337780309,1726111849063,-151.0,0.00021918,7]
[337780310,1726111849073,-151.0,0.00021918,7]
[337780311,1726111849083,-222.400699,0.00021918,7]
[337780312,1726111849092,-222.400699,0.00021918,7]
[337780313,1726111849103,-500.0,0.00021918,2]
[337780314,1726111849113,-500.0,0.00021918,2]
[337780315,1726111849122,-500.0,0.00021918,2]
[337780316,1726111849133,-500.0,0.00021918,2]
[337780317,1726111849143,-500.0,0.00021918,2]
[337780318,1726111849153,-500.0,0.00021918,2]
[337780319,1726111849163,-500.0,0.00021918,2]
[337780320,1726111849173,-500.0,0.00021918,2]
[337780321,1726111849183,-500.0,0.00021918,2]
[337780322,1726111849192,-500.0,0.00021918,2]
[337780323,1726111849203,-500.0,0.00021918,2]
[337780324,1726111849212,-500.0,0.00021918,2]
[337780325,1726111849223,-500.0,0.00021918,2]
[337780326,1726111849233,-500.0,0.00021918,2]
[337780327,1726111849243,-500.0,0.00021918,2]
[337780328,1726111849252,-500.0,0.00021918,2]
[337780329,1726111849262,-500.0,0.00021918,2]
[337780330,1726111849272,-500.0,0.00021918,2]
[337780331,1726111849282,-500.0,0.00021918,2]
[337780332,1726111849294,-500.0,0.00021918,2]
[337780333,1726111849305,-296.01705404,0.00021918,2]
[337780334,1726111849315,-500.0,0.00021918,2]
[337780335,1726111849327,-500.0,0.00021918,2]
[337780336,1726111849338,-501.80812817,0.00021941,2]
[337780337,1726111849349,-358.64522308,0.00021973,2]
[337780338,1726111849360,-500.0,0.00021973,2]
[337780339,1726111849370,-501.9754243,0.00021973,2]
[337780340,1726111849381,-162.31002438,0.00021973,2]
[337780341,1726111849390,-500.0,0.00021973,2]
[337780342,1726111849400,-500.0,0.00021973,2]
[337780343,1726111849410,-278.22610637,0.00021973,2]
[337780344,1726111849420,-500.99178075,0.00021973,2]
[337780345,1726111849429,-151.37378064,0.00021973,2]
[337780346,1726111849439,-500.0,0.00021973,2]
[337780347,1726111849449,-500.0,0.00021973,2]
[337780348,1726111849458,-500.0,0.00021973,2]
[337780349,1726111849468,-500.0,0.00021973,2]
[337780350,1726111849479,-374.58851612,0.00021973,2]
[337780351,1726111849489,-150.112233,0.00022,2]
[337780352,1726111849499,-15289.93125701,0.00022,14]
[337780353,1726111849513,-2525.16778478,0.00022,14]
[337780354,1726111849582,-269.50444559,0.00022,14]
[337780355,1726111849919,-500.0,0.00021917,2]
[337780356,1726111849929,-43300.01651262,0.00022,14]
[337780357,1726111849939,-192.70172254,0.00022091,2]
[337780358,1726111849949,-204.83951662,0.00022091,2]
[337780359,1726111849959,-1341.37263386,0.00022091,2]
[337780360,1726111849969,-150.112233,0.000221,2]
[337780361,1726111849978,-150.112233,0.000221,5]
[337780362,1726111849988,-150.112233,0.000221,5]
[337780363,1726111849998,-150.112233,0.000221,3]
[337780364,1726111850008,-150.112236,0.000221,5]
[337780365,1726111850019,-150.112233,0.000221,4]
[337780366,1726111850029,-150.112236,0.000221,5]
[337780367,1726111850038,-1154.14,0.0002218,2]
[337780368,1726111850048,-500.0,0.0002218,2]
[337780369,1726111850057,-500.0,0.0002218,2]
[337780370,1726111850067,-20014.3832768,0.00022181,3]
[337780371,1726111850077,-151.0,0.00022181,7]
[337780372,1726111850087,-151.0,0.00022181,7]
[337780373,1726111850096,-151.0,0.00022181,7]
[337780374,1726111850106,-151.0,0.00022181,7]
[337780375,1726111850115,-291.849319,0.00022181,7]
[337780376,1726111850125,-291.849319,0.00022181,7]
[337780377,1726111850135,-190.026946,0.00022181,7]
[337780378,1726111850145,-190.026946,0.00022181,7]
[337780379,1726111850156,-1154.14,0.0002219,2]
[337780380,1726111850166,-1154.14,0.0002219,2]
[337780381,1726111850176,-1154.14,0.0002219,2]
[337780382,1726111850186,-1154.14,0.0002219,2]
[337780383,1726111850200,-500.0,0.0002219,2]
[337780384,1726111850210,-500.0,0.0002219,2]
[337780385,1726111850219,-322.87420927,0.0002219,2]
[337780386,1726111850229,-501.7708067,0.00022191,2]
[337780387,1726111850240,-500.0,0.00022191,2]
[337780388,1726111850250,-501.08647035,0.00022191,2]
[337780389,1726111850261,-501.12231346,0.00022191,2]
[337780390,1726111850271,-500.0,0.00022191,2]
[337780391,1726111850280,-500.0,0.00022191,2]
[337780392,1726111850290,-500.0,0.00022191,2]
[337780393,1726111850300,-1044.98,0.00022191,2]
[337780394,1726111850310,-725.95,0.00022191,2]
[337780395,1726111850319,-501.8790204,0.00022191,2]
[337780396,1726111850330,-500.0,0.00022191,2]
[337780397,1726111850339,-305.13595677,0.00022191,2]
[337780398,1726111850348,-500.0,0.00022191,2]
[337780399,1726111850358,-500.0,0.00022191,2]
[337780400,1726111850367,-500.0,0.00022191,2]
[337780401,1726111850377,-500.0,0.00022191,2]
[337780402,1726111850386,-498.14246116,0.00022191,2]
[337780403,1726111850396,-500.0,0.00022191,2]
[337780404,1726111850406,-500.0,0.00022191,2]
[337780405,1726111850415,-500.0,0.00022191,2]
[337780406,1726111850426,-500.0,0.00022191,2]
[337780407,1726111850436,-500.0,0.00022191,2]
[337780408,1726111850445,-500.0,0.00022191,2]
[337780409,1726111850455,-224.65760659,0.00022191,2]
[337780410,1726111850464,-500.0,0.00022191,2]
[337780411,1726111850473,-500.0,0.00022191,2]
[337780412,1726111850483,-2177.72,0.00022191,2]
[337780413,1726111850492,-500.0,0.00022191,2]
[337780414,1726111850501,-500.0,0.00022191,2]
[337780415,1726111850512,-503.44,0.00022191,2]
[337780416,1726111850521,-504.02585046,0.00022191,2]
[337780417,1726111850531,-500.0,0.00022191,2]
[337780418,1726111850540,-500.0,0.00022191,2]
[337780419,1726111850549,-506.16393023,0.00022191,2]
[337780420,1726111850563,-500.0,0.00022191,2]
[337780421,1726111850573,-500.0,0.00022191,2]
[337780422,1726111850582,-504.92757202,0.00022191,2]
[337780423,1726111850592,-500.0,0.00022191,2]
[337780424,1726111850602,-500.0,0.00022191,2]
[337780425,1726111850611,-500.5743349,0.00022191,2]
[337780426,1726111850621,-500.0,0.00022191,2]
[337780427,1726111850630,-500.0,0.00022191,2]
[337780428,1726111850640,-151.0,0.00022191,7]
[337780429,1726111850649,-837.09,0.00022191,2]
[337780430,1726111850659,-151.0,0.00022191,7]
[337780431,1726111850668,-500.0,0.00022191,2]
[337780432,1726111850678,-500.0,0.00022191,2]
[337780433,1726111850687,-451.90440514,0.00022191,2]
[337780434,1726111850696,-500.0,0.00022191,2]
[337780435,1726111850706,-500.0,0.00022191,2]
[337780436,1726111850715,-500.0,0.00022191,2]
[337780437,1726111850725,-500.0,0.00022191,2]
[337780438,1726111850734,-500.0,0.00022191,2]
[337780439,1726111850743,-500.0,0.00022191,2]
[337780440,1726111850753,-502.15972482,0.00022191,2]
[337780441,1726111850762,-500.0,0.00022191,2]
[337780442,1726111850772,-362.10017985,0.00022191,2]
[337780443,1726111850782,-500.0,0.00022191,2]
[337780444,1726111850792,-500.0,0.00022191,2]
[337780445,1726111850801,-167.498445,0.00022191,7]
[337780446,1726111850810,-865.24,0.00022191,2]
[337780447,1726111850819,-530.26,0.00022191,2]
[337780448,1726111850828,-500.0,0.00022191,2]
[337780449,1726111850838,-501.85305581,0.00022191,2]
[337780450,1726111850848,-500.0,0.00022191,2]
[337780451,1726111850904,-512.63536904,0.00022191,2]
[337780452,1726111850913,-500.0,0.00022191,2]
[337780453,1726111850922,-502.78430225,0.00022191,2]
[337780454,1726111850931,-500.0,0.00022191,2]
[337780455,1726111850940,-500.0,0.00022191,2]
[337780456,1726111850949,-500.0,0.00022191,2]
[337780457,1726111850958,-500.0,0.00022191,2]
[337780458,1726111850967,-500.0,0.00022191,2]
[337780459,1726111850976,-500.0,0.00022191,2]
[337780460,1726111850985,-517.80010359,0.00022191,2]
[337780461,1726111850994,-504.52373986,0.00022191,2]
[337780462,1726111851003,-500.0,0.00022191,2]
[337780463,1726111851012,-500.0,0.00022191,2]
[337780464,1726111851021,-500.0,0.00022191,2]
[337780465,1726111851030,-500.0,0.00022191,2]
[337780466,1726111851040,-782.55,0.00022191,2]
[337780467,1726111851051,-509.06,0.00022191,2]
[337780468,1726111851061,-1195.5,0.00022191,2]
[337780469,1726111851071,-500.0,0.00022191,2]
[337780470,1726111851081,-546.58012675,0.00022191,2]
[337780471,1726111851090,-759.0,0.00022191,2]
[337780472,1726111851099,-501.8925155,0.00022191,2]
[337780473,1726111851108,-500.0,0.00022191,2]
[337780474,1726111851118,-328.19776144,0.00022191,2]
[337780475,1726111851127,-509.97526314,0.00022191,2]
[337780476,1726111851137,-500.87703025,0.00022191,2]
[337780477,1726111851148,-500.0,0.00022191,2]
[337780478,1726111851159,-631.5,0.00022191,2]
[337780479,1726111851168,-502.81989525,0.00022191,2]
[337780480,1726111851177,-500.0,0.00022191,2]
[337780481,1726111851186,-500.0,0.00022191,2]
[337780482,1726111851195,-500.0,0.00022191,2]
[337780483,1726111851204,-189.43852238,0.00022191,2]
[337780484,1726111851213,-500.0,0.00022191,2]
[337780485,1726111851222,-500.0,0.00022191,2]
[337780486,1726111851232,-500.0,0.00022191,2]
[337780487,1726111851241,-500.0,0.00022191,2]
[337780488,1726111851251,-500.0,0.00022191,2]
[337780489,1726111851266,-500.0,0.00022191,2]
[337780490,1726111851275,-501.80210635,0.00022191,2]
[337780491,1726111851284,-500.0,0.00022191,2]
[337780492,1726111851294,-500.0,0.00022191,2]
[337780493,1726111851303,-500.0,0.00022191,2]
[337780494,1726111851313,-500.0,0.00022191,2]
[337780495,1726111851322,-500.0,0.00022191,2]
[337780496,1726111851332,-500.0,0.00022191,2]
[337780497,1726111851342,-500.0,0.00022191,2]
[337780498,1726111851351,-500.0,0.00022191,2]
[337780499,1726111851360,-500.0,0.00022191,2]
[337780500,1726111851370,-500.0,0.00022191,2]
[337780501,1726111851379,-500.0,0.00022191,2]
[337780502,1726111851387,-500.0,0.00022191,2]
[337780503,1726111851396,-500.0,0.00022191,2]
[337780504,1726111851405,-151.0,0.00022191,7]
[337780505,1726111851414,-151.0,0.00022191,7]
[337780506,1726111851423,-844.45,0.00022191,2]
[337780507,1726111851432,-500.0,0.00022191,2]
[337780508,1726111851441,-500.0,0.00022191,2]
[337780509,1726111851450,-517.070764,0.00022191,2]
[337780510,1726111851459,-500.0,0.00022191,2]
[337780511,1726111851469,-500.0,0.00022191,2]
[337780512,1726111851479,-500.0,0.00022191,2]
[337780513,1726111851489,-500.0,0.00022191,2]
[337780514,1726111851498,-500.0,0.00022191,2]
[337780515,1726111851511,-500.0,0.00022191,2]
[337780516,1726111851526,-500.0,0.00022191,2]
[337780517,1726111851535,-500.0,0.00022191,2]
[337780518,1726111851544,-500.0,0.00022191,2]
[337780519,1726111851554,-1437.06,0.00022191,2]
[337780520,1726111851566,-500.0,0.00022191,2]
[337780521,1726111851575,-500.0,0.00022191,2]
[337780522,1726111851584,-500.0,0.00022191,2]
[337780523,1726111851593,-500.0,0.00022191,2]
[337780524,1726111851610,-813.55,0.00022191,2]
[337780525,1726111851619,-500.0,0.00022191,2]
[337780526,1726111851628,-573.14,0.00022191,2]
[337780527,1726111851638,-504.93812172,0.00022191,2]
[337780528,1726111851646,-963.47,0.00022191,2]
[337780529,1726111851655,-500.0,0.00022191,2]
[337780530,1726111851663,-506.59866403,0.00022191,2]
[337780531,1726111851673,-856.08,0.00022191,2]
[337780532,1726111851685,-503.586984,0.00022191,2]
[337780533,1726111851694,-500.0,0.00022191,2]
[337780534,1726111851704,-520.90787138,0.00022191,2]
[337780535,1726111851714,-500.0,0.00022191,2]
[337780536,1726111851723,-500.0,0.00022191,2]
[337780537,1726111851733,-575.8,0.00022191,2]
[337780538,1726111851743,-501.63597085,0.00022191,2]
[337780539,1726111851753,-500.0,0.00022191,2]
[337780540,1726111851762,-151.0,0.00022191,7]
[337780541,1726111851771,-151.0,0.00022191,7]
[337780542,1726111851781,-500.0,0.00022191,2]
[337780543,1726111851790,-151.0,0.00022191,7]
[337780544,1726111851799,-500.0,0.00022191,2]
[337780545,1726111851808,-646.67,0.00022191,2]
[337780546,1726111851817,-500.0,0.00022191,2]
[337780547,1726111851827,-500.0,0.00022191,2]
[337780548,1726111851836,-1174.03,0.00022191,2]
[337780549,1726111851845,-500.0,0.00022191,2]
[337780550,1726111851855,-500.0,0.00022191,2]
[337780551,1726111851864,-151.0,0.00022191,7]
[337780552,1726111851873,-500.0,0.00022191,2]
[337780553,1726111851882,-500.0,0.00022191,2]
[337780554,1726111851892,-394.28397163,0.00022191,2]
[337780555,1726111851902,-501.60475851,0.00022191,2]
[337780556,1726111851911,-1265.69,0.00022191,2]
[337780557,1726111851920,-1454.64,0.00022191,2]
[337780558,1726111851930,-500.0,0.00022191,2]
[337780559,1726111851939,-500.0,0.00022191,2]
[337780560,1726111851949,-649.04,0.00022191,2]
[337780561,1726111851958,-500.0,0.00022191,2]
[337780562,1726111851967,-500.0,0.00022191,2]
[337780563,1726111851976,-500.0,0.00022191,2]
[337780564,1726111851986,-500.0,0.00022191,2]
[337780565,1726111851995,-500.0,0.00022191,2]
[337780566,1726111852007,-500.0,0.00022191,2]
[337780567,1726111852016,-511.09718477,0.00022191,2]
[337780568,1726111852024,-500.0,0.00022191,2]
[337780569,1726111852033,-500.0,0.00022191,2]
[337780570,1726111852043,-500.0,0.00022191,2]
[337780571,1726111852052,-200.0,0.00022191,2]
[337780572,1726111852061,-514.86,0.00022191,2]
[337780573,1726111852071,-500.0,0.00022191,2]
[337780574,1726111852080,-500.87515719,0.00022191,2]
[337780575,1726111852089,-501.05736903,0.00022191,2]
[337780576,1726111852099,-500.0,0.00022191,2]
[337780577,1726111852109,-508.50948599,0.00022191,2]
[337780578,1726111852118,-500.0,0.00022191,2]
[337780579,1726111852127,-500.0,0.00022191,2]
[337780580,1726111852136,-500.0,0.00022191,2]
[337780581,1726111852146,-500.0,0.00022191,2]
[337780582,1726111852155,-504.05739092,0.00022191,2]
[337780583,1726111852165,-1814.95,0.00022191,2]
[337780584,1726111852174,-995.02,0.00022191,2]
[337780585,1726111852183,-605.32,0.00022191,2]
[337780586,1726111852192,-500.0,0.00022191,2]
[337780587,1726111852201,-1714.2,0.00022191,2]
[337780588,1726111852211,-151.0,0.00022191,7]
[337780589,1726111852220,-509.6,0.00022191,2]
[337780590,1726111852230,-151.0,0.00022191,7]
[337780591,1726111852239,-151.0,0.00022191,7]
[337780592,1726111852248,-526.19,0.00022191,2]
[337780593,1726111852259,-386.3019457,0.00022191,2]
[337780594,1726111852268,-500.0,0.00022191,2]
[337780595,1726111852278,-1313.08,0.00022191,2]
[337780596,1726111852287,-645.23,0.00022191,2]
[337780597,1726111852296,-500.0,0.00022191,2]
[337780598,1726111852305,-500.0,0.00022191,2]
[337780599,1726111852314,-500.0,0.00022191,2]
[337780600,1726111852324,-500.0,0.00022191,2]
[337780601,1726111852333,-503.08988214,0.00022191,2]
[337780602,1726111852344,-1046.84,0.00022191,2]
[337780603,1726111852354,-500.0,0.00022191,2]
[337780604,1726111852364,-550.27628128,0.00022191,2]
[337780605,1726111852373,-500.0,0.00022191,2]
[337780606,1726111852382,-1139.35,0.00022191,2]
[337780607,1726111852391,-500.0,0.00022191,2]
[337780608,1726111852400,-655.58,0.00022191,2]
[337780609,1726111852409,-796.68,0.00022191,2]
[337780610,1726111852418,-500.0,0.00022191,2]
[337780611,1726111852427,-511.33152353,0.00022191,2]
[337780612,1726111852436,-568.06,0.00022191,2]
[337780613,1726111852446,-500.0,0.00022191,2]
[337780614,1726111852455,-505.48949866,0.00022191,2]
[337780615,1726111852465,-500.0,0.00022191,2]
[337780616,1726111852475,-1319.63,0.00022191,2]
[337780617,1726111852485,-321.56164604,0.00022191,2]
[337780618,1726111852496,-500.0,0.00022191,2]
[337780619,1726111852508,-640.88,0.00022191,2]
[337780620,1726111852520,-500.0,0.00022191,2]
[337780621,1726111852531,-500.0,0.00022191,2]
[337780622,1726111852541,-1217.64,0.00022191,2]
[337780623,1726111852551,-843.89,0.00022191,2]
[337780624,1726111852565,-500.0,0.00022191,2]
[337780625,1726111852574,-501.75615893,0.00022191,2]
[337780626,1726111852583,-500.0,0.00022191,2]
[337780627,1726111852593,-500.0,0.00022191,2]
[337780628,1726111852603,-871.58,0.00022191,2]
[337780629,1726111852612,-500.0,0.00022191,2]
[337780630,1726111852623,-860.61,0.00022191,2]
[337780631,1726111852633,-500.0,0.00022191,2]
[337780632,1726111852643,-508.25135858,0.00022191,2]
[337780633,1726111852653,-500.0,0.00022191,2]
[337780634,1726111852662,-500.0,0.00022191,2]
[337780635,1726111852671,-700.94,0.00022191,2]
[337780636,1726111852681,-504.10185442,0.00022191,2]
[337780637,1726111852690,-732.41,0.00022191,2]
[337780638,1726111852700,-151.0,0.00022191,7]
[337780639,1726111852709,-151.0,0.00022191,7]
[337780640,1726111852719,-151.0,0.00022191,7]
[337780641,1726111852728,-2231.81,0.00022191,2]
[337780642,1726111852738,-151.0,0.00022191,7]
[337780643,1726111852747,-164.341537,0.00022191,7]
[337780644,1726111852758,-500.0,0.00022191,2]
[337780645,1726111852767,-500.0,0.00022191,2]
[337780646,1726111852777,-883.51,0.00022191,2]
[337780647,1726111852787,-507.99219363,0.00022191,2]
[337780648,1726111852797,-500.0,0.00022191,2]
[337780649,1726111852807,-500.0,0.00022191,2]
[337780650,1726111852816,-509.28291277,0.00022191,2]
[337780651,1726111852826,-502.59102469,0.00022191,2]
[337780652,1726111852835,-500.0,0.00022191,2]
[337780653,1726111852845,-500.0,0.00022191,2]
[337780654,1726111852855,-500.0,0.00022191,2]
[337780655,1726111852864,-500.0,0.00022191,2]
[337780656,1726111852874,-500.0,0.00022191,2]
[337780657,1726111852884,-500.0,0.00022191,2]
[337780658,1726111852894,-1365.29,0.00022191,2]
[337780659,1726111852904,-500.0,0.00022191,2]
[337780660,1726111852914,-500.0,0.00022191,2]
[337780661,1726111852923,-500.0,0.00022191,2]
[337780662,1726111852933,-871.62,0.00022191,2]
[337780663,1726111852942,-500.0,0.00022191,2]
[337780664,1726111852951,-500.0,0.00022191,2]
[337780665,1726111852961,-151.0,0.00022191,7]
[337780666,1726111852971,-500.82846974,0.00022191,2]
[337780667,1726111852980,-458.06577066,0.00022191,2]
[337780668,1726111852990,-151.0,0.00022191,7]
[337780669,1726111853003,-151.0,0.00022191,7]
[337780670,1726111853013,-470.731648,0.00022191,2]
[337780671,1726111853023,-1193.33,0.00022191,2]
[337780672,1726111853034,-292.12437783,0.00022191,2]
[337780673,1726111853044,-151.0,0.00022191,7]
[337780674,1726111853054,-500.0,0.00022191,2]
[337780675,1726111853064,-1524.99,0.00022191,2]
[337780676,1726111853074,-151.0,0.00022191,7]
[337780677,1726111853084,-151.0,0.00022191,7]
[337780678,1726111853095,-291.849319,0.00022191,7]
[337780679,1726111853105,-291.849319,0.00022191,7]
[337780680,1726111853114,-291.849319,0.00022191,7]
[337780681,1726111853125,-500.0,0.00022191,2]
[337780682,1726111853136,-291.849319,0.00022191,7]
[337780683,1726111853147,-291.849319,0.00022191,7]
[337780684,1726111853156,-500.0,0.00022191,2]
[337780685,1726111853166,-291.849319,0.00022191,7]
[337780686,1726111853176,-500.0,0.00022191,2]
[337780687,1726111853185,-500.0,0.00022191,2]
[337780688,1726111853194,-504.92241837,0.00022191,2]
[337780689,1726111853204,-500.0,0.00022191,2]
[337780690,1726111853214,-500.0,0.00022191,2]
[337780691,1726111853224,-500.0,0.00022191,2]
[337780692,1726111853234,-523.393542,0.00022191,7]
[337780693,1726111853245,-523.393542,0.00022191,7]
[337780694,1726111853256,-523.393542,0.00022191,7]
[337780695,1726111853265,-500.0,0.00022191,2]
[337780696,1726111853275,-519.7166908,0.00022191,2]
[337780697,1726111853284,-436.01090799,0.00022191,2]
[337780698,1726111853295,-500.0,0.00022191,2]
[337780699,1726111853305,-500.0,0.00022191,2]
[337780700,1726111853315,-523.393542,0.00022191,7]
[337780701,1726111853326,-523.393542,0.00022191,7]
[337780702,1726111853336,-523.393542,0.00022191,7]